bitfinex-derivatives/quotes_ETHF0:USTF0_20230104
["timestamp","ask_amount","ask_price","bid_price","bid_amount"]
[1672846431390,3.0073,1250.9,1250.7,1.597]
[1672846431600,3.0073,1250.9,1250.5,2.5]
[1672846431601,3.0073,1250.9,1250.8,1.601]
[1672846434537,5.97960925,1250.9,1250.8,1.601]
[1672846435695,3.0073,1250.9,1250.8,1.601]
[1672846436224,5.97960925,1250.9,1250.8,1.601]
[1672846436437,3.0073,1250.9,1250.8,1.601]
[1672846436644,5.97960925,1250.9,1250.8,1.601]
[1672846437382,3.0073,1250.9,1250.8,1.601]
[1672846441056,5.97960925,1250.9,1250.8,1.601]
[1672846444113,5.97960925,1250.9,1250.7,1.598]
[1672846444533,2.37834044,1250.8,1250.7,1.598]
[1672846446952,5.38564044,1250.9,1250.7,1.598]
[1672846447164,5.38564044,1250.9,1250.8,1.6]
[1672846447379,3.0073,1250.9,1250.8,1.6]
[1672846447585,5.35064969,1251.0,1250.8,1.6]
[1672846447899,2.97230925,1251.0,1250.9,1.598]
[1672846448526,2.38119885,1251.0,1250.9,1.598]
[1672846449059,2.38119885,1251.0,1250.9,2.098]
[1672846449479,8.3608081,1251.1,1250.9,2.098]
[1672846449680,5.38849885,1251.1,1251.0,1.601]
[1672846449890,5.97960925,1251.1,1251.0,1.601]
[1672846450733,13.98160925,1251.1,1251.0,0.5948]
[1672846450943,15.57860925,1251.1,1250.8,4.098]
[1672846451148,5.35475066,1251.0,1250.8,4.098]
[1672846451363,2.88244141,1251.0,1250.9,0.5]
[1672846451576,5.85475066,1251.0,1250.9,0.5]
[1672846451785,2.88244141,1251.0,1250.9,0.5]
[1672846452314,5.85475066,1251.0,1250.9,0.5]
[1672846453057,5.35475066,1251.0,1250.9,0.5]
[1672846453372,5.85475066,1251.0,1250.9,2.092]
[1672846453589,2.88244141,1251.0,1250.9,2.092]
[1672846453782,2.38244141,1251.0,1250.9,10.094]
[1672846454107,2.38244141,1251.1,1250.9,11.704]
[1672846454312,5.35475066,1251.2,1251.1,1.601]
[1672846454522,5.35475066,1251.2,1251.1,3.202]
[1672846455151,2.97230925,1251.2,1251.1,3.202]
[1672846455368,3.47230925,1251.2,1251.1,3.202]
[1672846455997,2.97230925,1251.2,1251.1,3.202]
[1672846456204,5.35643751,1251.2,1251.1,3.202]
[1672846457265,3.47230925,1251.2,1251.1,3.202]
[1672846460415,0.5,1251.2,1251.1,3.202]
[1672846460627,8.502,1251.2,1251.0,1.598]
[1672846460835,3.0073,1251.1,1251.0,1.598]
[1672846461038,3.0073,1251.1,1250.9,1.601]
[1672846461039,5.98786099,1251.1,1250.9,1.601]
[1672846461362,5.36492522,1251.0,1250.9,0.5]
[1672846461575,2.38436423,1251.0,1250.9,0.5]
[1672846461986,2.98056099,1251.0,1250.9,0.5]
[1672846462837,5.36611118,1251.0,1250.9,0.5]
[1672846463248,8.37341118,1251.0,1250.9,0.5]
[1672846463465,5.98786099,1251.0,1250.9,0.5]
[1672846463676,8.37344959,1251.0,1250.9,0.5]
[1672846463984,5.98786099,1251.0,1250.9,0.5]
[1672846464616,5.98786099,1251.0,1250.8,6.588]
[1672846464821,2.38862599,1250.9,1250.8,6.588]
[1672846465566,2.38862599,1250.9,1250.8,16.191]
[1672846466721,4.17971503,1250.9,1250.8,16.191]
[1672846467177,1.79108904,1250.9,1250.8,16.191]
[1672846467347,2.98056099,1251.1,1250.8,39.20556359]
[1672846467557,5.98786099,1251.3,1251.0,20.7943]
[1672846467762,5.98786099,1251.3,1251.2,1.601]
[1672846469768,2.98056099,1251.3,1251.2,9.603]
[1672846470499,5.48056099,1251.4,1251.3,4.101]
[1672846470705,2.98056099,1251.4,1251.3,13.704]
[1672846470915,8.48786099,1251.5,1251.3,13.704]
[1672846471126,8.48786099,1251.5,1251.4,1.588]
[1672846471546,5.5073,1251.5,1251.4,1.588]
[1672846474605,8.48767018,1251.5,1251.4,1.588]
[1672846475020,5.98767018,1251.5,1251.4,1.588]
[1672846477028,3.0073,1251.5,1251.4,1.588]
[1672846477444,5.9879173,1251.5,1251.4,1.588]
[1672846477654,3.0073,1251.5,1251.4,1.588]
[1672846480914,5.98837771,1251.5,1251.4,1.588]
[1672846482376,5.98839757,1251.5,1251.4,1.588]
[1672846482899,2.98109757,1251.5,1251.4,1.588]
[1672846486483,2.98109757,1251.5,1251.4,2.5]
[1672846486681,2.98109757,1251.5,1251.4,5.702]
[1672846486896,2.98109757,1251.5,1251.4,13.704]
[1672846488371,3.58673749,1251.8,1251.4,15.299]
[1672846488579,3.58673749,1251.8,1251.4,12.097]
[1672846488793,6.59403749,1251.9,1251.7,12.793]
[1672846489005,3.58673749,1252.0,1251.8,3.197]
[1672846489216,6.59403749,1252.0,1251.7,1.589]
[1672846489425,6.59403749,1252.0,1251.4,4.095]
[1672846489426,3.0073,1251.8,1251.4,4.095]
[1672846489739,0.5,1251.7,1251.5,1.591]
[1672846489949,0.5,1251.7,1251.6,1.601]
[1672846495621,3.0073,1251.8,1251.6,1.601]
[1672846495836,3.0073,1251.8,1251.7,1.592]
[1672846497093,6.59403749,1251.8,1251.7,1.592]
[1672846497514,3.0073,1251.8,1251.7,3.193]
[1672846497929,3.0073,1251.8,1251.7,11.195]
[1672846498982,2.38431352,1251.8,1251.7,11.195]
[1672846499615,2.38431352,1251.8,1251.7,3.193]
[1672846500449,2.38431352,1251.8,1251.7,11.195]
[1672846501192,2.38431352,1251.8,1251.7,3.193]
[1672846501507,2.38431352,1251.8,1251.7,11.195]
[1672846502657,7.76285287,1252.1,1251.8,9.1834]
[1672846502873,7.76285287,1252.1,1252.0,11.204]
[1672846503079,8.95602953,1252.4,1252.0,11.204]
[1672846503080,6.59403749,1252.4,1252.0,11.204]
[1672846503296,6.59403749,1252.4,1252.2,1.601]
[1672846503715,2.5,1252.3,1252.2,1.601]
[1672846504031,6.08673749,1252.3,1252.2,1.601]
[1672846504445,10.26285287,1252.3,1252.2,1.601]
[1672846505073,6.67611538,1252.3,1252.2,1.601]
[1672846505500,10.25770476,1252.3,1252.2,1.601]
[1672846506131,6.67611538,1252.3,1252.2,1.601]
[1672846506652,7.75762189,1252.3,1252.2,9.594]
[1672846506863,10.76492189,1252.4,1252.2,11.195]
[1672846507065,6.58880651,1252.4,1252.3,11.699]
[1672846507490,6.58880651,1252.4,1252.3,8.502]
[1672846507708,6.58880651,1252.4,1252.3,11.701]
[1672846508120,9.08880651,1252.4,1252.3,11.701]
[1672846508337,2.97419685,1252.5,1252.3,11.701]
[1672846508540,2.97419685,1252.5,1252.4,9.599]
[1672846508752,2.97419685,1252.7,1252.4,12.795]
[1672846508965,2.97419685,1252.7,1252.6,11.197]
[1672846509381,2.97419685,1252.9,1252.6,12.792]
[1672846509592,2.97419685,1252.9,1252.8,1.601]
[1672846509593,5.98149685,1252.9,1252.8,1.601]
[1672846509912,7.58249685,1252.9,1252.5,1.601]
[1672846510112,5.5073,1252.6,1252.5,1.601]
[1672846510746,5.5073,1252.6,1252.5,3.202]
[1672846511271,2.9738046,1252.7,1252.5,12.805]
[1672846511487,8.4811046,1252.8,1252.6,3.202]
[1672846511697,5.5073,1252.8,1252.7,3.202]
[1672846511905,8.4811046,1252.8,1252.7,3.202]
[1672846512115,5.5073,1252.8,1252.7,3.202]
[1672846512960,3.0073,1252.8,1252.7,3.202]
[1672846514229,3.0073,1252.8,1252.7,11.204]
[1672846514539,7.0581,1253.0,1252.7,12.8]
[1672846514749,7.0581,1253.0,1252.9,11.2]
[1672846514956,3.0073,1253.0,1252.9,11.2]
[1672846515272,5.5073,1253.2,1252.9,12.794]
[1672846515484,5.5073,1253.2,1253.1,3.202]
[1672846515892,3.0073,1253.2,1253.1,11.204]
[1672846516215,2.9738046,1253.3,1253.1,4.803]
[1672846516527,5.5073,1253.4,1253.1,1.601]
[1672846516528,3.0073,1253.2,1253.1,1.601]
[1672846516731,3.0073,1253.2,1253.1,3.202]
[1672846516944,3.0073,1253.2,1253.1,5.702]
[1672846517154,3.0073,1253.2,1253.1,3.202]
[1672846520213,3.0073,1253.2,1253.1,12.804]
[1672846521041,3.0073,1253.6,1253.3,8.002]
[1672846521254,2.5,1253.8,1253.6,1.594]
[1672846521467,3.0073,1253.7,1253.6,1.594]
[1672846521682,2.5,1253.8,1253.6,4.792]
[1672846521888,3.0073,1253.9,1253.6,12.096]
[1672846522099,1.111,1254.0,1253.4,1.616]
[1672846522100,3.0073,1253.7,1253.4,1.616]
[1672846522315,3.0073,1253.5,1253.4,1.616]
[1672846522522,3.0073,1253.5,1253.4,3.217]
[1672846522938,3.0073,1253.5,1253.4,11.219]
[1672846523676,3.0073,1253.5,1253.4,12.81]
[1672846524302,5.5073,1253.7,1253.4,12.81]
[1672846524524,5.5073,1253.7,1253.6,11.188]
[1672846525060,3.0073,1253.7,1253.6,11.188]
[1672846526429,3.0073,1253.7,1253.6,3.186]
[1672846527887,3.0073,1253.7,1253.5,1.598]
[1672846528099,4.5973,1253.7,1253.4,1.594]
[1672846528308,3.0073,1253.5,1253.4,1.594]
[1672846528527,3.0073,1253.5,1253.1,4.115]
[1672846528843,3.0073,1253.3,1253.1,12.117]
[1672846529053,3.0073,1253.3,1253.2,2.094]
[1672846530212,3.0073,1253.3,1253.2,1.594]
[1672846532527,4.6013,1253.3,1253.0,1.588]
[1672846532739,3.0073,1253.1,1252.9,1.594]
[1672846532944,3.0073,1253.1,1252.9,4.094]
[1672846533267,2.5,1253.0,1252.9,4.094]
[1672846533483,2.5,1253.0,1252.9,1.594]
[1672846535806,4.096,1253.0,1252.7,1.601]
[1672846536003,4.6083,1252.8,1252.6,4.094]
[1672846536429,0.5,1252.7,1252.6,1.594]
[1672846536855,2.087,1252.7,1252.5,1.601]
[1672846537166,3.0073,1252.6,1252.5,1.601]
[1672846539695,3.0073,1252.6,1252.5,16.204]
[1672846539893,3.0073,1252.8,1252.5,17.795]
[1672846540102,3.0073,1252.8,1252.7,3.189]
[1672846546940,5.5073,1253.0,1252.7,11.191]
[1672846547138,3.0073,1252.8,1252.7,9.603]
[1672846547354,3.0073,1252.8,1252.7,11.204]
[1672846547972,3.0073,1253.0,1252.7,11.204]
[1672846548175,3.0073,1253.0,1252.9,1.601]
[1672846548176,5.5073,1253.0,1252.9,1.601]
[1672846548821,3.0073,1253.0,1252.9,9.603]
[1672846549036,2.9738046,1253.2,1252.9,12.799]
[1672846549037,3.0073,1253.2,1252.9,12.799]
[1672846549242,3.0073,1253.2,1253.1,3.183]
[1672846549457,3.0073,1253.2,1253.1,11.185]
[1672846553473,2.35484217,1253.5,1253.3,8.002]
[1672846553684,2.35484217,1253.5,1253.4,11.199]
[1672846554938,8.33594677,1253.6,1253.4,11.199]
[1672846555142,8.33594677,1253.6,1253.5,1.601]
[1672846555352,8.33594677,1253.6,1253.5,9.603]
[1672846556306,2.35484217,1253.6,1253.5,9.603]
[1672846556505,2.35484217,1253.6,1253.5,11.199]
[1672846557044,2.35484217,1253.6,1253.5,13.699]
[1672846557250,2.35484217,1253.7,1253.5,13.699]
[1672846557463,2.35484217,1253.7,1253.6,12.798]
[1672846558631,2.35484217,1253.7,1253.6,11.204]
[1672846559361,2.9738046,1253.7,1253.6,11.204]
[1672846559571,3.4738046,1253.7,1253.6,11.204]
[1672846560203,3.4738046,1253.7,1253.6,3.202]
[1672846560414,2.9738046,1253.7,1253.6,3.202]
[1672846562203,5.34973943,1253.7,1253.6,11.204]
[1672846562615,2.37593483,1253.7,1253.6,11.204]
[1672846563032,5.34973943,1253.7,1253.6,11.204]
[1672846563246,5.34973943,1253.7,1253.6,9.595]
[1672846563668,5.34920504,1253.7,1253.6,9.595]
[1672846563872,2.9738046,1253.7,1253.4,9.598]
[1672846564075,0.5,1253.4,1253.2,4.6]
[1672846564302,0.5,1253.4,1253.3,1.596]
[1672846564502,3.5073,1253.5,1253.3,1.596]
[1672846564923,3.5073,1253.5,1253.4,1.596]
[1672846565237,5.88287957,1253.5,1253.4,1.596]
[1672846565434,5.38287957,1253.5,1253.4,1.596]
[1672846566066,3.0073,1253.5,1253.4,3.177]
[1672846567323,3.0073,1253.5,1253.4,11.179]
[1672846567851,5.38287957,1253.5,1253.4,11.179]
[1672846568371,5.38287957,1253.5,1253.4,3.177]
[1672846570683,3.0073,1253.5,1253.4,9.598]
[1672846571318,3.0073,1253.5,1253.4,1.596]
[1672846574264,5.38287957,1253.5,1253.4,1.596]
[1672846575110,5.38287957,1253.5,1253.3,8.002]
[1672846575416,5.38287957,1253.5,1253.2,1.581]
[1672846575417,6.94538417,1253.4,1252.9,2.5]
[1672846575735,2.5,1253.0,1252.9,2.5]
[1672846575946,5.38276364,1253.3,1252.9,5.692]
[1672846576159,2.5,1253.2,1252.9,4.096]
[1672846576364,2.5,1253.2,1253.1,1.596]
[1672846576681,3.0073,1253.2,1253.1,1.596]
[1672846578158,3.0073,1253.2,1253.1,1.593]
[1672846580361,5.38276364,1253.2,1253.1,1.593]
[1672846580571,3.0073,1253.2,1253.1,1.593]
[1672846580785,5.38276364,1253.2,1253.1,1.593]
[1672846582152,3.0073,1253.2,1253.1,1.593]
[1672846583098,5.38276364,1253.2,1253.1,1.593]
[1672846583303,8.35656824,1253.2,1253.1,1.593]
[1672846583514,5.38276364,1253.2,1253.1,1.593]
[1672846583731,8.35656824,1253.2,1253.1,1.593]
[1672846584568,3.0073,1253.2,1253.1,1.593]
[1672846584772,2.38150008,1253.2,1253.1,9.595]
[1672846584988,2.9768751,1253.3,1253.1,11.182]
[1672846584989,2.38150008,1253.3,1253.1,11.182]
[1672846585200,2.38150008,1253.3,1253.2,2.096]
[1672846586359,2.38150008,1253.3,1253.2,10.098]
[1672846586571,5.9841751,1253.4,1253.2,10.098]
[1672846586572,8.36567518,1253.4,1253.2,10.098]
[1672846586774,2.9768751,1253.3,1253.2,8.502]
[1672846586976,2.9768751,1253.3,1253.2,11.694]
[1672846587511,5.36262379,1253.4,1253.2,11.694]
[1672846587711,5.36262379,1253.4,1253.3,12.098]
[1672846587924,2.9768751,1253.4,1253.3,12.098]
[1672846588345,2.38669254,1253.5,1253.3,16.6923]
[1672846588556,2.38669254,1253.5,1253.4,23.376]
[1672846588766,10.76492189,1253.8,1253.4,23.376]
[1672846588981,6.58880651,1253.8,1253.7,1.596]
[1672846589193,9.08880651,1253.8,1253.7,1.596]
[1672846589400,6.58880651,1253.8,1253.7,4.096]
[1672846590341,7.08880651,1253.8,1253.7,1.596]
[1672846590554,11.26492189,1253.8,1253.7,1.596]
[1672846590766,7.68341538,1253.8,1253.7,1.596]
[1672846591292,7.68341538,1253.8,1253.6,1.583]
[1672846591507,4.17302899,1253.7,1253.5,4.096]
[1672846591722,3.0073,1253.6,1253.5,4.096]
[1672846594136,3.0073,1253.6,1253.5,1.596]
[1672846594567,6.58416693,1253.6,1253.5,1.596]
[1672846597922,6.58416693,1253.6,1253.5,1.593]
[1672846598129,3.0073,1253.6,1253.5,4.093]
[1672846600756,3.0073,1253.6,1253.5,12.095]
[1672846602646,3.57686693,1253.7,1253.6,1.596]
[1672846602862,6.58416693,1253.8,1253.6,11.179]
[1672846603067,3.0073,1253.8,1253.7,1.596]
[1672846603490,6.58416693,1253.8,1253.7,1.596]
[1672846605382,10.75719592,1253.8,1253.7,1.596]
[1672846605592,11.25719592,1253.8,1253.7,1.596]
[1672846605910,10.75719592,1253.8,1253.7,1.596]
[1672846606433,7.68032899,1253.8,1253.6,1.581]
[1672846606641,3.5770074,1253.7,1253.6,1.581]
[1672846608113,7.75003639,1253.7,1253.6,1.581]
[1672846608326,3.5770074,1253.7,1253.6,1.581]
[1672846608535,3.57769545,1253.7,1253.6,1.581]
[1672846614318,3.57769545,1253.7,1253.6,1.592]
[1672846615263,9.34672444,1253.7,1253.5,2.5]
[1672846615479,3.0073,1253.6,1253.5,2.5]
[1672846615791,6.58499545,1253.6,1253.5,2.5]
[1672846616000,6.58499545,1253.6,1253.3,12.098]
[1672846616212,3.0073,1253.4,1253.3,12.098]
[1672846616423,5.9878501,1253.4,1253.3,12.098]
[1672846616638,3.0073,1253.4,1253.3,12.098]
[1672846617475,5.9878501,1253.4,1253.3,12.098]
[1672846617790,5.9878501,1253.4,1253.3,4.096]
[1672846618316,5.9878501,1253.4,1253.3,12.098]
[1672846618516,3.0073,1253.4,1253.3,12.098]
[1672846618938,5.39236962,1253.4,1253.3,12.098]
[1672846619577,8.37291972,1253.4,1253.3,12.098]
[1672846619790,5.9878501,1253.4,1253.3,12.098]
[1672846619999,8.37420879,1253.4,1253.3,12.098]
[1672846620207,5.39365869,1253.4,1253.3,12.098]
[1672846620416,5.36690879,1253.4,1253.3,13.687]
[1672846620622,5.36690879,1253.5,1253.3,16.6943]
[1672846620838,2.38635869,1253.5,1253.4,16.194]
[1672846623052,5.36690879,1253.5,1253.4,16.194]
[1672846623892,3.57769545,1253.6,1253.4,16.194]
[1672846624102,3.57769545,1253.6,1253.5,12.098]
[1672846624625,3.57769545,1253.6,1253.5,4.096]
[1672846624944,7.75072444,1253.6,1253.5,4.096]
[1672846625463,4.17302899,1253.6,1253.4,1.596]
[1672846625781,10.76627647,1253.5,1253.2,16.29158466]
[1672846625990,3.0073,1253.3,1253.1,12.9453371]
[1672846626211,2.98863435,1253.2,1253.1,2.78758466]
[1672846626513,2.98863435,1253.2,1253.1,5.28758466]
[1672846626729,5.48863435,1253.2,1253.1,12.095]
[1672846627350,5.48863435,1253.2,1253.1,4.093]
[1672846627570,5.48863435,1253.2,1253.1,1.593]
[1672846627778,2.5,1253.2,1253.1,4.093]
[1672846628617,2.5,1253.2,1253.1,1.593]
[1672846629144,2.5,1253.2,1253.1,1.586]
[1672846629354,10.76627647,1253.3,1253.1,1.586]
[1672846629674,2.5,1253.2,1253.1,1.586]
[1672846629987,5.48671456,1253.2,1253.1,1.586]
[1672846630307,2.5,1253.2,1253.1,1.586]
[1672846630515,6.59324748,1253.3,1253.1,1.586]
[1672846630516,9.09324748,1253.3,1253.1,1.586]
[1672846630726,2.98684394,1253.2,1253.1,1.586]
[1672846630929,0.5,1253.2,1253.1,1.586]
[1672846631244,2.9867505,1253.2,1253.1,1.586]
[1672846631661,5.37528094,1253.2,1253.1,1.586]
[1672846631873,2.9867505,1253.2,1253.1,1.586]
[1672846632297,5.37528918,1253.2,1253.1,13.685]
[1672846632507,2.38853868,1253.2,1253.1,14.87958466]
[1672846632932,2.38853868,1253.3,1253.2,0.5]
[1672846633131,2.38853868,1253.3,1253.2,17.88310806]
[1672846635129,2.38853868,1253.3,1253.2,16.694]
[1672846635871,5.37528918,1253.4,1253.2,21.27198505]
[1672846636082,2.38853868,1253.4,1253.3,11.196]
[1672846636285,5.37491282,1253.4,1253.3,11.196]
[1672846636490,2.9867505,1253.4,1253.3,11.196]
[1672846643124,3.58594748,1253.4,1253.3,1.597]
[1672846646068,11.26627647,1253.5,1253.3,1.597]
[1672846647113,3.58594748,1253.4,1253.3,1.597]
[1672846650583,7.75897647,1253.4,1253.3,1.597]
[1672846652476,7.75897647,1253.4,1253.2,1.589]
[1672846652686,3.0073,1253.3,1253.2,1.589]
[1672846652899,6.59324748,1253.3,1253.2,1.589]
[1672846660455,3.0073,1253.3,1253.2,1.589]
[1672846660882,5.99145852,1253.3,1253.2,1.589]
[1672846661202,5.99145852,1253.3,1253.2,3.186]
[1672846661932,3.0073,1253.3,1253.2,3.186]
[1672846662558,6.59324748,1253.3,1253.2,3.186]
[1672846666035,6.59324748,1253.3,1253.2,1.597]
[1672846667393,10.76627647,1253.3,1253.2,1.597]
[1672846668342,10.76627647,1253.3,1253.0,7.5]
[1672846668660,10.76627647,1253.3,1253.2,1.597]
[1672846668975,6.59324748,1253.3,1253.2,1.597]
[1672846670018,10.76627647,1253.3,1253.2,1.597]
[1672846670862,7.18032899,1253.3,1253.2,1.597]
[1672846671278,7.18032899,1253.3,1253.2,4.097]
[1672846671279,6.5915463,1253.3,1253.2,4.097]
[1672846678742,7.18032899,1253.3,1253.2,4.097]
[1672846680852,7.18032899,1253.3,1253.2,1.597]
[1672846681689,3.0073,1253.3,1253.2,1.597]
[1672846681902,7.76203495,1253.3,1253.1,0.5]
[1672846682116,7.76203495,1253.3,1253.2,1.597]
[1672846682964,11.9485192,1253.3,1253.2,1.597]
[1672846684554,11.9485192,1253.3,1253.0,15.502]
[1672846684763,11.9485192,1253.3,1253.0,17.099]
[1672846684764,6.59581156,1253.1,1253.0,17.099]
[1672846684971,6.59581156,1253.1,1253.0,18.69]
[1672846686328,6.59581156,1253.1,1253.0,10.688]
[1672846687170,6.59581156,1253.1,1253.0,11.87710806]
[1672846687171,3.0073,1253.1,1253.0,11.87710806]
[1672846688857,3.0073,1253.1,1253.0,10.688]
[1672846689493,6.59581759,1253.1,1253.0,10.688]
[1672846690647,5.99714066,1253.1,1253.0,11.87710806]
[1672846690852,3.0073,1253.1,1253.0,11.87710806]
[1672846691063,3.0073,1253.1,1253.0,10.688]
[1672846691420,3.0073,1253.1,1253.0,11.87710806]
[1672846692062,5.99719723,1253.1,1253.0,11.87710806]
[1672846692748,3.0073,1253.1,1253.0,11.87710806]
[1672846693800,3.0073,1253.1,1253.0,8.188]
[1672846694220,3.0073,1253.1,1253.0,10.688]
[1672846694746,3.0073,1253.1,1253.0,11.87710806]
[1672846695060,3.0073,1253.1,1253.0,8.188]
[1672846695483,3.0073,1253.1,1253.0,3.188]
[1672846695696,3.0073,1253.1,1253.0,1.597]
[1672846695896,6.59551343,1253.1,1253.0,1.597]
[1672846696105,10.78199768,1253.1,1253.0,1.597]
[1672846696318,7.19378425,1253.1,1253.0,1.597]
[1672846697661,10.78166673,1253.1,1253.0,1.597]
[1672846698294,10.78166673,1253.1,1253.0,1.5650779]
[1672846698501,10.78166673,1253.1,1253.0,1.46931157]
[1672846698722,13.27904429,1253.1,1253.0,1.46931157]
[1672846699445,9.09256004,1253.1,1253.0,1.46931157]
[1672846701668,6.59256004,1253.1,1253.0,1.46931157]
[1672846701975,6.59256004,1253.1,1253.0,1.597]
[1672846702188,3.0073,1253.1,1253.0,1.597]
[1672846702503,3.0073,1253.1,1253.0,4.37710806]
[1672846702504,2.98799229,1253.1,1253.0,4.37710806]
[1672846703869,2.98799229,1253.1,1253.0,3.188]
[1672846705134,5.99529229,1253.1,1253.0,3.188]
[1672846705655,3.0073,1253.1,1253.0,3.188]
[1672846706179,5.99552704,1253.1,1253.0,3.188]
[1672846706386,3.0073,1253.1,1253.0,3.188]
[1672846709013,3.0073,1253.1,1253.0,1.597]
[1672846709344,6.59256004,1253.1,1253.0,1.597]
[1672846711650,10.77904429,1253.1,1253.0,1.597]
[1672846711867,7.19378425,1253.1,1253.0,1.597]
[1672846713123,7.19378425,1253.1,1253.0,0.3017]
[1672846713530,7.19378425,1253.1,1253.0,0.1261]
[1672846713745,10.7788969,1253.1,1253.0,0.1261]
[1672846714167,6.59241265,1253.1,1253.0,0.1261]
[1672846714900,6.59241265,1253.1,1253.0,1.586]
[1672846716062,7.19378425,1253.1,1253.0,1.586]
[1672846717745,7.19378425,1253.1,1252.9,2.097]
[1672846718167,3.58583142,1253.0,1252.9,2.097]
[1672846720164,2.9878367,1253.0,1252.9,2.097]
[1672846721102,6.59313142,1253.1,1252.9,2.097]
[1672846721419,6.59313142,1253.1,1253.0,1.597]
[1672846722677,7.19378425,1253.1,1253.0,1.597]
[1672846724055,8.78678425,1253.1,1252.8,4.089]
[1672846724270,3.0073,1252.9,1252.8,4.089]
[1672846725429,3.0073,1252.9,1252.8,1.589]
[1672846725641,7.09304826,1252.9,1252.8,1.589]
[1672846725838,7.09304826,1252.9,1252.7,1.597]
[1672846726045,12.86853251,1252.9,1252.6,6.582]
[1672846726270,5.99532741,1252.7,1252.6,6.582]
[1672846727214,3.0073,1252.7,1252.6,1.582]
[1672846727738,5.99145918,1252.7,1252.6,1.582]
[1672846729104,3.0073,1252.7,1252.6,1.582]
[1672846729314,5.99128517,1252.7,1252.6,1.582]
[1672846729526,3.0073,1252.7,1252.6,1.582]
[1672846731833,5.98928943,1252.7,1252.6,1.582]
[1672846733724,5.39277219,1252.7,1252.6,1.582]
[1672846735528,8.37476162,1252.7,1252.6,1.582]
[1672846735735,5.39277219,1252.7,1252.6,1.582]
[1672846735941,8.37476162,1252.7,1252.6,1.582]
[1672846736369,5.36746162,1252.7,1252.6,1.582]
[1672846736683,2.38547219,1252.8,1252.6,11.183]
[1672846736884,2.38547219,1252.8,1252.7,1.597]
[1672846737302,2.38547219,1252.8,1252.7,2.097]
[1672846737727,2.38547219,1252.8,1252.7,11.696]
[1672846737940,2.38547219,1252.9,1252.7,14.7033]
[1672846738258,8.37476162,1253.0,1252.8,11.17]
[1672846738467,2.38547219,1252.9,1252.8,9.584]
[1672846738699,2.38547219,1252.9,1252.8,11.181]
[1672846739094,8.37476162,1253.0,1252.8,11.181]
[1672846739300,5.39277219,1253.0,1252.9,1.586]
[1672846739525,2.38547219,1253.0,1252.9,1.586]
[1672846739831,2.38547219,1253.0,1252.9,4.086]
[1672846740879,2.38547219,1253.0,1252.9,12.088]
[1672846742670,5.39277219,1253.0,1252.9,4.086]
[1672846742880,5.98928943,1253.0,1252.9,1.586]
[1672846743516,3.0073,1253.0,1252.8,1.597]
[1672846743723,3.48182654,1252.9,1252.7,2.097]
[1672846743940,2.38662091,1252.8,1252.7,2.097]
[1672846744559,2.38662091,1252.8,1252.7,1.597]
[1672846744777,5.98912654,1252.8,1252.6,1.591]
[1672846745088,2.38677069,1252.7,1252.6,1.591]
[1672846747726,8.37589723,1252.8,1252.6,1.591]
[1672846748245,2.38677069,1252.7,1252.6,1.591]
[1672846748564,2.38677069,1252.7,1252.5,5.28610806]
[1672846749302,2.38677069,1252.7,1252.5,4.097]
[1672846749501,2.38677069,1252.7,1252.5,5.28610806]
[1672846749712,9.97089723,1252.8,1252.6,2.5]
[1672846750134,2.38677069,1252.7,1252.6,2.5]
[1672846750553,2.38677069,1252.7,1252.6,4.097]
[1672846750765,2.38677069,1252.7,1252.6,5.692]
[1672846751084,2.38677069,1252.8,1252.6,6.88110806]
[1672846751400,2.38677069,1252.8,1252.7,1.597]
[1672846754662,5.39407069,1252.8,1252.7,1.597]
[1672846757403,8.37589723,1252.8,1252.7,1.597]
[1672846757827,5.98912654,1252.8,1252.7,1.597]
[1672846759620,5.98912654,1252.8,1252.6,1.597]
[1672846759830,5.98912654,1252.8,1252.7,2.5]
[1672846760452,5.98912654,1252.8,1252.6,1.597]
[1672846760669,5.37281492,1252.7,1252.6,1.597]
[1672846761084,2.3879169,1252.7,1252.6,1.597]
[1672846761298,7.87281408,1252.7,1252.6,1.597]
[1672846761510,4.88791668,1252.7,1252.6,1.597]
[1672846761719,2.38791668,1252.7,1252.6,1.597]
[1672846761930,4.88791668,1252.7,1252.6,1.597]
[1672846762349,7.87281386,1252.7,1252.6,1.597]
[1672846762559,4.88791668,1252.7,1252.6,1.597]
[1672846764559,2.38791668,1252.7,1252.6,1.597]
[1672846764879,2.38791668,1252.7,1252.6,2.78610806]
[1672846765398,2.38791668,1252.7,1252.6,1.597]
[1672846766981,5.37281386,1252.7,1252.6,1.597]
[1672846769397,2.98489718,1252.7,1252.6,1.597]
[1672846769710,5.37389101,1252.7,1252.6,1.597]
[1672846770335,5.37388538,1252.7,1252.6,1.597]
[1672846770863,2.98489718,1252.7,1252.6,1.597]
[1672846771806,2.98489718,1252.7,1252.5,2.78610806]
[1672846772009,12.57489718,1252.7,1252.4,4.57798505]
[1672846772223,2.39046207,1252.5,1252.4,2.78610806]
[1672846773276,2.39046207,1252.5,1252.4,4.57798505]
[1672846773696,2.39046207,1252.5,1252.4,2.78610806]
[1672846774016,2.39046207,1252.5,1252.4,1.597]